bitfinex/quotes_ETHUSD_20240607
["timestamp","ask_amount","ask_price","bid_price","bid_amount"]
[1717800796760,2.298,3700.0,3699.1,5.07335]
[1717800797077,0.75,3700.0,3699.1,2.37]
[1717800797248,0.09161291,3699.9,3699.1,2.37]
[1717800798693,0.09161291,3699.9,3699.2,1.39285466]
[1717800798847,0.75,3699.8,3698.3,0.75]
[1717800799187,2.298,3699.4,3698.4,1.39285466]
[1717800799716,0.75,3699.2,3698.4,1.39285466]
[1717800799976,0.09137575,3699.1,3698.4,1.39285466]
[1717800800745,0.75,3699.5,3698.4,1.39285466]
[1717800801018,0.09109364,3699.4,3698.4,1.39285466]
[1717800801549,0.75,3699.2,3698.4,1.39285466]
[1717800801978,0.09104751,3699.1,3698.4,1.39285466]
[1717800805414,0.75,3699.6,3698.5,2.70374]
[1717800805599,0.09090767,3699.0,3698.6,1.39285466]
[1717800805899,0.75,3699.6,3698.7,2.70363]
[1717800806072,0.75,3699.6,3698.8,1.39285466]
[1717800807102,0.75,3701.6,3698.8,1.39285466]
[1717800807103,0.75,3699.4,3698.8,1.39285466]
[1717800807472,0.09333973,3699.3,3698.8,1.39285466]
[1717800811017,0.09333973,3699.3,3698.0,2.70412]
[1717800811018,0.75,3699.1,3698.0,2.70412]
[1717800811195,0.75,3699.1,3698.1,1.39285466]
[1717800811412,0.09326005,3699.0,3698.1,1.39285466]
[1717800812414,0.09326005,3699.0,3698.2,2.70395]
[1717800812704,0.09326005,3699.0,3698.5,2.70379]
[1717800812884,0.09326005,3699.0,3698.6,1.39285466]
[1717800813079,0.23692667,3699.2,3698.6,1.39285466]
[1717800813288,0.09036091,3698.9,3698.6,1.39285466]
[1717800813509,0.23692667,3699.2,3698.7,2.70361]
[1717800813687,0.23692667,3699.2,3698.9,2.70349]
[1717800813882,0.23692667,3699.2,3699.1,2.70336]
[1717800814131,0.75,3700.0,3699.1,4.09621466]
[1717800814275,0.75,3700.0,3699.4,2.70312]
[1717800814594,0.75,3700.0,3699.5,1.39285466]
[1717800820422,0.75,3699.7,3699.4,2.70312]
[1717800820837,0.75,3699.5,3698.3,2.70394]
[1717800821026,0.52046758,3700.6,3698.3,2.70394]
[1717800821027,0.75,3699.0,3698.3,2.70394]
[1717800821212,1.0548,3699.0,3698.4,1.39285466]
[1717800821416,0.75,3698.5,3697.8,2.70429]
[1717800821606,0.75,3698.5,3697.9,1.39285466]
[1717800821923,0.75,3698.6,3698.0,2.70409]
[1717800822091,0.75,3698.6,3698.0,4.09694466]
[1717800822499,0.75,3698.8,3698.1,1.39285466]
[1717800822699,0.26028,3698.9,3698.2,2.70401]
[1717800822905,0.26028,3698.9,3698.2,4.09686466]
[1717800823106,1.01028,3698.9,3698.2,4.09686466]
[1717800823491,0.75,3698.9,3698.3,1.39285466]
[1717800825234,0.75,3699.2,3698.4,2.70385]
[1717800825550,0.75,3699.2,3698.5,1.39285466]
[1717800825692,0.75,3699.0,3698.5,1.39285466]
[1717800827186,0.08546241,3698.9,3698.5,1.39285466]
[1717800830137,1.725,3698.7,3698.5,1.39285466]
[1717800830497,0.08545269,3698.6,3698.5,1.39285466]
[1717800831837,2.475,3699.0,3698.5,1.39285466]
[1717800831993,0.08530402,3698.6,3698.5,1.39285466]
[1717800832203,2.475,3699.0,3698.5,1.39285466]
[1717800832501,0.08530402,3698.6,3698.5,1.39285466]
[1717800832700,2.475,3699.0,3698.5,1.39285466]
[1717800832934,0.08534532,3698.6,3698.5,1.39285466]
[1717800833100,2.475,3699.0,3698.5,1.39285466]
[1717800833304,0.08534532,3698.6,3698.5,1.39285466]
[1717800833537,2.475,3699.0,3698.5,1.39285466]
[1717800833711,0.08535023,3698.6,3698.5,1.39285466]
[1717800833910,2.475,3699.0,3698.5,1.39285466]
[1717800834138,0.08534777,3698.6,3698.5,1.39285466]
[1717800834325,2.475,3699.0,3698.5,1.39285466]
[1717800834527,0.08534777,3698.6,3698.5,1.39285466]
[1717800834712,2.475,3699.0,3698.5,1.39285466]
[1717800835312,0.08539006,3698.9,3698.5,2.52495872]
[1717800835753,2.475,3699.0,3698.5,2.52495872]
[1717800836080,0.08535318,3698.9,3698.6,1.13210406]
[1717800836216,0.08535318,3698.9,3698.7,1.92371558]
[1717800836412,2.475,3699.0,3698.7,1.92371558]
[1717800836634,2.475,3699.0,3698.9,1.68962447]
[1717800837048,2.475,3699.2,3698.9,1.92371558]
[1717800838345,2.475,3699.2,3699.0,1.92371558]
[1717800838516,2.475,3699.2,3699.1,1.92371558]
[1717800838844,2.475,3699.2,3698.8,2.27238903]
[1717800839044,2.475,3699.2,3699.1,1.97127516]
[1717800839346,2.475,3699.2,3698.9,2.27238903]
[1717800839551,2.475,3699.2,3698.8,2.27238903]
[1717800840052,2.475,3699.2,3698.9,2.27238903]
[1717800840248,2.475,3699.2,3698.8,2.27238903]
[1717800840551,2.475,3699.2,3698.9,2.27238903]
[1717800840770,2.475,3699.2,3698.5,4.20184337]
[1717800840771,0.75,3699.4,3699.0,2.27238903]
[1717800841048,0.75,3699.4,3699.2,2.27238903]
[1717800841218,0.75,3699.6,3699.3,2.27238903]
[1717800841557,0.75,3699.6,3699.4,2.27238903]
[1717800842113,0.9975,3699.6,3699.4,2.27238903]
[1717800842437,0.75,3699.4,3699.2,2.33319215]
[1717800842639,1.725,3699.3,3699.2,2.33319215]
[1717800842842,1.8024939,3699.3,3699.1,2.33319215]
[1717800843161,1.8024939,3699.3,3699.2,2.33319215]
[1717800843463,1.8024939,3699.3,3699.1,2.33319215]
[1717800844051,1.8024939,3699.3,3698.9,1.39285466]
[1717800844052,1.8024939,3699.3,3699.2,2.33319215]
[1717800844224,1.8024939,3699.3,3699.1,2.33319215]
[1717800844419,1.8024939,3699.3,3698.9,1.39285466]
[1717800844420,1.8024939,3699.3,3699.0,2.33319215]
[1717800844624,0.75,3699.2,3699.0,2.33319215]
[1717800844846,0.75,3699.0,3698.7,2.33319215]
[1717800845055,1.725,3698.8,3698.5,2.33319215]
[1717800845262,1.725,3698.8,3698.5,3.3694509]
[1717800845562,1.725,3698.8,3698.7,1.6942613]
[1717800845765,1.725,3698.8,3698.5,1.39285466]
[1717800846126,1.725,3698.8,3698.7,1.69424077]
[1717800846327,1.725,3698.8,3698.7,1.41185389]
[1717800846529,1.725,3698.8,3698.6,1.41185389]
[1717800846753,1.725,3698.8,3698.7,1.41185389]
[1717800847152,1.725,3698.8,3698.6,1.41185389]
[1717800847352,1.725,3698.8,3698.5,1.39285466]
[1717800848656,0.75,3698.7,3697.9,1.12945641]
[1717800848974,0.75,3698.7,3698.0,1.39285466]
[1717800850342,3.45368,3698.7,3698.0,1.39285466]
[1717800850657,0.07687521,3698.6,3698.0,1.39285466]
[1717800850839,0.62718073,3698.6,3698.0,1.39285466]
[1717800855071,1.725,3698.1,3697.4,2.70454]
[1717800855293,2.475,3698.1,3697.5,1.39285466]
[1717800855462,0.07507372,3698.0,3697.5,1.39285466]
[1717800855986,0.75,3697.6,3696.6,2.70516]
[1717800856145,0.75,3697.1,3696.6,1.39285466]
[1717800856337,0.07474701,3697.0,3696.6,1.39285466]
[1717800857264,0.07474701,3697.0,3696.3,0.472]
[1717800857460,0.07474701,3697.0,3696.4,1.39285466]
[1717800860456,0.32972171,3697.0,3696.4,1.39285466]
[1717800864783,0.75,3696.8,3696.3,0.472]
[1717800864941,0.07177401,3696.7,3696.3,1.86485466]
[1717800865144,0.75,3696.8,3696.3,1.86485466]
[1717800865347,0.07177401,3696.7,3696.3,1.86485466]
[1717800865667,0.75,3696.8,3696.3,1.86485466]
[1717800865869,0.07175468,3696.6,3696.3,1.86485466]
[1717800866079,0.07176879,3696.7,3696.3,1.86485466]
[1717800866375,0.07173965,3696.6,3696.3,1.86485466]
[1717800866561,0.75,3696.8,3696.3,1.86485466]
[1717800866761,1.12098647,3696.8,3696.3,0.472]
[1717800866967,0.07175899,3696.7,3696.3,0.472]
[1717800867161,1.12098647,3696.8,3696.3,0.472]
[1717800867366,0.75,3696.4,3696.3,0.472]
[1717800867579,2.475,3696.4,3696.3,0.472]
[1717800867785,2.54671664,3696.4,3696.3,0.472]
[1717800868370,5.48271664,3696.4,3696.3,0.472]
[1717800869884,6.06788087,3696.4,3696.3,0.472]
[1717800870177,6.94519496,3696.4,3696.3,0.472]
[1717800871481,6.36003073,3696.4,3696.3,0.472]
[1717800871864,6.94520052,3696.4,3696.3,0.472]
[1717800875200,4.67020052,3696.4,3696.3,0.472]
[1717800875500,5.81003073,3696.4,3696.3,0.472]
[1717800878901,6.94516474,3696.4,3696.3,0.472]
[1717800879260,6.94516474,3696.4,3694.8,7.43]
[1717800879261,0.75,3695.6,3694.8,7.43]
[1717800879461,1.725,3695.4,3694.8,1.39285466]
[1717800879808,0.06836242,3695.3,3694.8,1.39285466]
[1717800880515,0.81836242,3695.3,3694.8,1.39285466]
[1717800880695,0.75,3695.1,3694.4,2.70677]
[1717800880904,0.75,3695.1,3694.5,1.39285466]
[1717800881223,0.06819542,3695.0,3694.5,1.39285466]
[1717800883512,0.25433624,3695.2,3694.5,1.39285466]
[1717800883698,0.06818129,3694.9,3694.5,1.39285466]
[1717800883899,0.75,3695.3,3694.5,1.39285466]
[1717800883900,0.75,3695.3,3694.6,2.70659]
[1717800884114,0.06816716,3694.8,3694.7,1.39285466]
[1717800884278,0.75,3695.3,3694.7,1.39285466]
[1717800884811,0.06807492,3695.2,3694.7,1.39285466]
[1717800885013,0.32238241,3695.2,3694.7,1.39285466]
[1717800885384,0.75,3694.8,3694.1,2.70695]
[1717800885607,0.0680712,3694.7,3694.2,1.39285466]
[1717800885809,0.75,3694.8,3694.3,2.70686]
[1717800886007,0.0680712,3694.7,3694.4,1.39285466]
[1717800886309,0.25430749,3695.2,3694.4,1.39285466]
[1717800886310,0.75,3695.0,3694.4,1.39285466]
[1717800886625,0.06809135,3694.9,3694.4,1.39285466]
[1717800887409,0.06809135,3694.9,3694.5,2.7067]
[1717800887617,0.75,3695.3,3694.6,1.39285466]
[1717800887824,0.06813374,3695.2,3694.6,1.39285466]
[1717800888687,0.06813374,3695.2,3694.7,2.70652]
[1717800888887,0.06813374,3695.2,3694.8,1.39285466]
[1717800889090,0.75,3695.3,3694.8,1.39285466]
[1717800889290,0.06805518,3695.1,3694.8,1.39285466]
[1717800889505,0.75,3695.3,3694.7,2.70652]
[1717800889705,0.06807112,3695.0,3694.7,4.09937466]
[1717800889909,0.9975,3695.3,3694.7,4.09937466]
[1717800890124,0.06809416,3694.9,3694.7,4.09937466]
[1717800890305,0.9975,3695.3,3694.7,4.09937466]
[1717800890508,0.06808003,3694.8,3694.7,4.09937466]
[1717800890712,0.9975,3695.3,3694.7,4.09937466]
[1717800890889,0.06807191,3694.8,3694.7,4.09937466]
[1717800891089,0.27225,3695.2,3694.7,4.09937466]
[1717800891349,0.06807191,3694.8,3694.7,4.09937466]
[1717800891639,0.0680638,3694.8,3694.7,4.09937466]
[1717800892137,0.27225,3695.2,3694.7,4.09937466]
[1717800892335,0.0680638,3694.8,3694.7,4.09937466]
[1717800892541,0.27225,3695.2,3694.7,4.09937466]
[1717800892746,0.0680638,3694.8,3694.7,4.09937466]
[1717800893046,0.06807191,3694.8,3694.7,4.09937466]
[1717800893212,0.27225,3695.2,3694.7,4.09937466]
[1717800893523,0.06583826,3695.1,3694.7,4.09937466]
[1717800896627,0.75,3694.9,3694.2,2.70689]
[1717800896801,0.06577964,3694.8,3694.3,1.39285466]
[1717800898527,0.75,3694.6,3694.2,2.70689]
[1717800898814,0.0657127,3694.5,3694.2,2.70689]
[1717800899196,0.06570669,3694.4,3694.2,2.70689]
[1717800899815,0.0656646,3694.3,3694.2,2.70689]
[1717800900032,0.75,3694.6,3694.2,2.70689]
[1717800900415,0.06569287,3694.5,3694.2,2.70689]
[1717800900736,0.06569287,3694.5,3694.4,2.70679]
[1717800900919,0.06569287,3694.5,3694.4,6.80643466]
[1717800901263,0.96726372,3695.9,3695.3,2.7061]
[1717800901400,0.75,3695.7,3695.3,4.09895466]
[1717800901593,0.05910725,3695.6,3695.3,4.09895466]
[1717800904329,0.05910725,3695.6,3695.3,2.7061]
[1717800904534,0.75,3695.5,3694.9,2.7064]
[1717800904695,0.75,3695.5,3694.9,4.09925466]
[1717800904898,0.05928337,3695.4,3694.9,4.09925466]
[1717800918089,0.72,3695.1,3694.9,4.09925466]
[1717800918452,0.058379,3695.0,3694.9,4.09925466]
[1717800918912,0.058379,3695.0,3694.5,2.70669]
[1717800919069,0.72,3694.6,3694.3,0.42401252]
[1717800919279,0.808379,3695.0,3694.4,1.39285466]
[1717800919693,0.72,3694.5,3694.3,0.42401252]
[1717800919991,0.75,3694.6,3694.3,0.42401252]
[1717800920188,0.05840021,3694.4,3694.3,0.42401252]
[1717800920413,0.75,3694.6,3694.3,0.42401252]
[1717800920555,0.0581556,3694.4,3694.3,0.42401252]
[1717800920755,0.75,3694.6,3694.3,0.42401252]
[1717800920968,0.05823368,3694.4,3694.3,0.42401252]
[1717800921290,0.05797701,3694.4,3694.3,0.42401252]
[1717800921515,0.9979,3694.6,3694.3,0.42401252]
[1717800921719,0.05802334,3694.4,3694.3,0.42401252]
[1717800921905,0.9979,3694.6,3694.3,0.42401252]
[1717800922212,0.05802334,3694.4,3694.3,0.42401252]
[1717800922412,0.9979,3694.6,3694.3,0.42401252]
[1717800922631,0.05802334,3694.4,3694.3,0.42401252]
[1717800922819,0.9979,3694.6,3694.3,0.42401252]
[1717800923015,0.05803146,3694.4,3694.3,0.42401252]
[1717800923206,0.9979,3694.6,3694.3,0.42401252]
[1717800923378,0.05798787,3694.4,3694.3,0.42401252]
[1717800923582,0.9979,3694.6,3694.3,0.42401252]
[1717800923779,0.0580336,3694.4,3694.3,0.42401252]
[1717800924003,0.9979,3694.6,3694.3,0.42401252]
[1717800924205,0.0580336,3694.4,3694.3,0.42401252]
[1717800924392,0.9979,3694.6,3694.3,0.42401252]
[1717800924602,0.05811421,3694.4,3694.3,0.42401252]
[1717800924798,0.9979,3694.6,3694.3,0.42401252]
[1717800925302,0.05811585,3694.5,3694.3,0.42401252]
[1717800929911,1.33534206,3695.2,3694.4,1.39285466]
[1717800930243,1.15413421,3695.2,3694.4,1.39285466]
[1717800931231,0.75,3694.9,3694.4,1.39285466]
[1717800932144,0.05816996,3694.8,3694.4,1.39285466]
[1717800937222,0.75,3694.7,3694.3,0.42401252]
[1717800937718,0.05815911,3694.6,3694.3,0.42401252]
[1717800937939,0.05815911,3694.6,3694.4,1.39285466]
[1717800938141,0.75,3694.8,3694.4,1.39285466]
[1717800938331,0.05814498,3694.5,3694.4,1.39285466]
[1717800938529,0.75,3694.8,3694.4,1.39285466]
[1717800938757,0.05814498,3694.5,3694.4,1.39285466]
[1717800938923,0.75,3694.8,3694.4,1.39285466]
[1717800939251,0.05814498,3694.5,3694.4,1.39285466]
[1717800939414,0.75,3694.8,3694.4,1.39285466]
[1717800939621,0.05814498,3694.5,3694.4,1.39285466]
[1717800939932,0.05809984,3694.5,3694.4,1.39285466]
[1717800941638,0.05809984,3694.5,3694.3,0.42401252]
[1717800941941,0.72,3694.4,3694.3,0.42401252]
[1717800942145,0.77735833,3694.4,3694.3,0.42401252]
[1717800950230,0.05735833,3694.4,3694.3,0.42401252]
[1717800950626,0.75,3694.8,3694.3,0.42401252]
[1717800950960,0.72,3694.6,3694.3,0.42401252]
[1717800951567,0.05721973,3694.5,3694.3,0.42401252]
[1717800952640,0.72,3694.4,3694.3,0.42401252]
[1717800953028,0.77727042,3694.4,3694.3,0.42401252]
[1717800961786,1.52727042,3694.4,3694.3,0.42401252]
[1717800965645,0.80727042,3694.4,3694.3,0.42401252]
[1717800965852,1.52727042,3694.4,3694.3,0.42401252]
[1717800966650,0.80727042,3694.4,3694.3,0.42401252]
[1717800972686,1.52727042,3694.4,3694.3,0.42401252]
[1717800974100,0.05727042,3694.4,3694.3,1.81686718]
[1717800974592,0.05680847,3694.4,3694.3,1.81686718]
[1717800974973,0.75,3694.9,3694.3,1.81686718]
[1717800975167,0.05706786,3694.4,3694.3,1.81686718]
[1717800975384,0.75,3694.9,3694.3,1.81686718]
[1717800975592,0.05706786,3694.4,3694.3,1.81686718]
[1717800975756,0.75,3694.9,3694.3,1.81686718]
[1717800975959,0.05716483,3694.4,3694.3,1.81686718]
[1717800976160,0.75,3694.9,3694.3,1.81686718]
[1717800976355,0.05716483,3694.4,3694.3,1.81686718]
[1717800976609,0.72,3694.8,3694.3,1.81686718]
[1717800976761,0.05686795,3694.4,3694.3,1.81686718]
[1717800977064,0.72,3694.8,3694.3,1.81686718]
[1717800977268,0.05686795,3694.4,3694.3,1.81686718]
[1717800977595,0.72,3694.8,3694.4,2.70679]
[1717800977809,0.75,3694.9,3694.4,2.70679]
[1717800977966,1.47,3694.9,3694.4,2.70679]
[1717800978471,0.75,3694.9,3694.4,2.70679]
[1717800978798,0.72,3694.8,3694.4,2.70679]
[1717800979296,0.72,3694.6,3694.4,2.70679]
[1717800983410,1.617,3694.6,3694.3,0.42401252]
[1717800983698,0.72,3694.4,3694.3,0.42401252]
[1717800984010,0.897,3694.6,3694.3,0.42401252]
[1717800984175,0.72,3694.4,3694.3,0.42401252]
[1717800992167,0.77667945,3694.4,3694.3,0.42401252]
[1717800998588,0.05667945,3694.4,3694.3,0.42401252]
[1717800999009,1.47,3694.6,3694.3,0.42401252]
[1717800999201,0.0539863,3694.4,3694.3,0.42401252]
[1717800999512,1.47,3694.6,3694.3,0.42401252]
[1717801000040,0.05400044,3694.5,3694.3,0.42401252]
[1717801004345,0.72,3694.4,3694.3,0.42401252]
[1717801004528,0.77027547,3694.4,3694.3,0.42401252]
[1717801005343,0.05027547,3694.4,3694.3,0.42401252]
[1717801005654,1.47,3694.6,3694.3,0.42401252]
[1717801006148,0.05028961,3694.5,3694.3,0.42401252]
[1717801007341,0.72,3694.4,3694.3,0.42401252]
[1717801007543,0.77038767,3694.4,3694.3,0.42401252]
[1717801012271,0.05038767,3694.4,3694.3,1.81686718]
[1717801012691,0.72,3694.6,3694.3,1.81686718]
[1717801012868,0.05040258,3694.4,3694.3,1.81686718]
[1717801013075,0.72,3694.6,3694.3,1.81686718]
[1717801013255,0.05040258,3694.4,3694.3,1.81686718]
[1717801013459,0.72,3694.6,3694.3,1.81686718]
[1717801014089,0.05041672,3694.5,3694.3,1.81686718]
[1717801015580,0.05041672,3694.5,3694.3,4.52368718]
[1717801015973,0.72,3694.6,3694.3,4.52368718]
[1717801016258,0.04712382,3694.5,3694.3,4.52368718]
[1717801019399,0.72,3694.8,3694.4,1.39285466]
[1717801019584,0.72,3694.9,3694.5,2.70671]
[1717801019785,0.75,3695.0,3694.5,4.09956466]
[1717801022267,0.04734621,3694.9,3694.5,4.09956466]
[1717801023493,0.27079647,3694.9,3694.7,2.70657]
[1717801023659,0.27079647,3694.9,3694.8,1.39285466]
[1717801024407,0.22345026,3694.9,3694.8,1.39285466]
[1717801027843,0.02,3696.4,3696.1,2.70549]
[1717801028062,0.60503378,3697.3,3696.4,2.7053]
[1717801028224,0.60503378,3697.3,3696.8,2.70498]
[1717801028225,0.02,3697.3,3696.8,2.70498]
[1717801028406,0.0403557,3697.2,3696.9,1.39285466]
[1717801028603,0.0403557,3697.2,3697.0,2.70489]
[1717801028804,0.02,3697.3,3697.1,1.39285466]
[1717801029117,0.02,3697.3,3696.5,2.70523]
[1717801029320,0.72,3697.1,3696.6,1.39285466]
[1717801029526,0.9660321,3697.2,3696.6,1.39285466]
[1717801029841,0.72,3697.0,3696.6,1.39285466]
[1717801030139,0.04056483,3696.9,3696.6,1.39285466]
[1717801030559,0.04056483,3696.9,3696.7,2.70511]
[1717801030763,0.72,3697.1,3696.8,1.39285466]
[1717801030934,0.04085115,3697.0,3696.8,1.39285466]
[1717801034667,0.72,3697.1,3696.8,1.39285466]
[1717801035143,0.03949816,3697.0,3696.8,1.39285466]
[1717801036538,0.03949816,3697.0,3696.7,2.70511]
[1717801036733,0.72,3696.9,3696.7,4.09796466]
[1717801036927,0.03860635,3696.8,3696.7,4.09796466]
[1717801038742,0.03860635,3696.8,3696.2,2.70543]
[1717801038945,0.03860635,3696.8,3695.7,2.2707]
[1717801038946,0.75,3696.5,3695.7,2.70578]
[1717801039145,0.72,3696.1,3695.8,1.39285466]
[1717801039348,0.03854599,3696.0,3695.8,1.39285466]
[1717801040874,0.72,3696.2,3695.8,1.39285466]
[1717801041076,0.03821977,3695.9,3695.8,1.39285466]
[1717801041257,0.72,3696.2,3695.8,1.39285466]
[1717801041458,0.03821977,3695.9,3695.8,1.39285466]
[1717801041690,0.72,3696.0,3695.8,1.39285466]
[1717801041869,0.03821228,3695.9,3695.8,1.39285466]
[1717801042459,0.72,3696.0,3695.8,1.39285466]
[1717801042652,0.0381822,3695.9,3695.3,2.70613]
[1717801042864,0.72,3695.8,3695.4,1.39285466]
[1717801043375,0.03814162,3695.7,3695.4,1.39285466]
[1717801043954,0.72,3695.9,3695.4,1.39285466]
[1717801044264,0.03811837,3695.8,3695.4,1.39285466]
[1717801045755,0.03811837,3695.8,3695.5,2.70597]
[1717801045960,0.72,3696.2,3695.6,1.39285466]
[1717801046156,0.03805793,3696.1,3695.6,1.39285466]
[1717801046780,0.78805793,3696.1,3695.6,1.39285466]
[1717801048411,0.72,3696.0,3695.6,1.39285466]
[1717801048853,0.03828857,3695.9,3695.6,1.39285466]
[1717801050176,0.72,3695.9,3695.6,1.39285466]
[1717801050560,0.03826695,3695.8,3695.6,1.39285466]
[1717801052544,0.72,3695.8,3695.6,1.39285466]
[1717801052780,0.03803636,3695.7,3695.6,1.39285466]
[1717801054372,0.78803636,3695.7,3695.1,2.70627]
[1717801054562,0.72,3695.6,3695.2,1.39285466]
[1717801054760,0.03797814,3695.5,3695.2,1.39285466]
[1717801054962,0.03797814,3695.5,3695.1,2.70627]
[1717801055164,0.72,3695.4,3695.1,4.09912466]
[1717801055380,0.03789243,3695.3,3695.2,1.39285466]
[1717801055678,0.75,3695.7,3695.2,1.39285466]
[1717801055890,0.03785247,3695.3,3695.2,1.39285466]
[1717801056085,0.72,3695.6,3695.2,1.39285466]
[1717801056295,0.03789759,3695.3,3695.2,1.39285466]
[1717801056467,0.72,3695.6,3695.2,1.39285466]
[1717801056782,0.03789759,3695.3,3695.2,1.39285466]
[1717801056953,0.72,3695.6,3695.2,1.39285466]
[1717801057152,0.03789759,3695.3,3695.2,1.39285466]
[1717801057353,0.72,3695.6,3695.3,2.70612]
[1717801057591,0.72,3695.6,3695.3,4.09897466]
[1717801062092,0.03791336,3695.5,3695.3,4.09897466]
[1717801063786,0.03791336,3695.5,3695.4,1.39285466]
[1717801064295,0.75,3696.0,3695.5,2.70593]
[1717801064458,0.75,3696.0,3695.7,2.70583]
[1717801065192,3.29032772,3696.6,3695.9,2.70569]
[1717801065193,0.75,3696.5,3695.9,2.70569]
[1717801065359,0.72,3696.3,3696.0,1.39285466]
[1717801067183,0.03834664,3696.2,3696.0,1.39285466]
[1717801067484,0.72,3696.3,3696.0,1.39285466]
[1717801067686,0.75,3696.7,3696.1,2.70555]
[1717801067893,0.72,3696.4,3696.1,4.09840466]
[1717801068475,0.58502434,3697.1,3696.3,0.72]
[1717801068680,0.20553977,3697.2,3696.4,1.39285466]
[1717801068870,0.72,3696.7,3696.4,1.39285466]
[1717801073293,0.75,3697.0,3696.4,1.39285466]
[1717801073507,0.72,3696.8,3696.4,1.39285466]
[1717801075103,0.75,3697.0,3696.4,1.39285466]
[1717801075416,0.75,3696.7,3696.3,2.70536]
[1717801075618,0.75,3696.7,3696.3,4.09821466]
[1717801077109,0.20553977,3697.2,3696.7,2.70511]
[1717801077414,0.20553977,3697.2,3696.8,1.39285466]
[1717801077415,0.72,3697.1,3696.8,1.39285466]
[1717801077614,0.72,3697.1,3696.9,2.70496]
[1717801077822,0.72,3697.1,3696.9,4.09781466]
[1717801078393,0.20553977,3697.2,3696.9,4.09781466]
[1717801078786,0.92553977,3697.2,3696.9,4.09781466]
[1717801080421,0.20553977,3697.2,3696.9,4.09781466]
[1717801080631,0.92553977,3697.2,3696.9,4.09781466]
[1717801081392,0.72,3697.0,3696.9,4.09781466]
[1717801082106,0.75763343,3697.0,3696.9,4.09781466]
[1717801082928,0.03763343,3697.0,3696.9,4.09781466]
[1717801083141,0.72,3697.1,3696.9,4.09781466]
[1717801083323,0.03764317,3697.0,3696.9,4.09781466]
[1717801083859,0.03764317,3697.0,3695.7,2.2707]
[1717801084140,0.72,3696.8,3696.4,2.70529]
[1717801084302,0.72,3696.8,3696.5,1.39285466]
[1717801084504,0.03760083,3696.7,3696.5,1.39285466]
[1717801084730,0.72,3696.8,3696.5,1.39285466]
[1717801084938,0.03757698,3696.6,3696.5,1.39285466]
[1717801085146,0.72,3696.8,3696.5,1.39285466]
[1717801085363,0.75757698,3696.6,3696.4,2.70529]
[1717801085655,0.72,3696.6,3696.4,2.70529]
[1717801085821,0.0373313,3696.5,3696.0,2.7056]
[1717801086019,0.0373313,3696.5,3696.1,1.39285466]
[1717801087312,1.47,3696.7,3696.1,1.39285466]
[1717801087517,0.03735495,3696.4,3696.1,1.39285466]
[1717801087742,0.75,3696.7,3696.2,2.70548]
[1717801087950,0.75,3696.7,3696.4,2.70532]
[1717801088842,0.02,3697.1,3696.5,1.39285466]
[1717801089893,0.02,3697.1,3696.6,2.70513]
[1717801090168,0.02,3697.1,3696.7,1.39285466]
[1717801090335,0.02,3697.1,3696.8,2.70503]
[1717801090543,0.02,3697.1,3696.9,1.39285466]
[1717801090744,0.02,3697.1,3697.0,2.70489]
[1717801090951,0.02,3697.1,3697.0,4.09774466]
[1717801093815,0.22553977,3697.2,3697.0,4.09774466]
[1717801094075,0.22553977,3697.2,3697.1,1.39285466]
[1717801095726,0.22553977,3697.2,3697.0,2.70489]
[1717801096460,0.22553977,3697.2,3696.6,2.70518]
[1717801096655,0.22553977,3697.2,3696.7,1.39285466]
[1717801097237,0.03766282,3697.1,3696.7,1.39285466]
[1717801099280,0.72,3697.0,3696.6,2.70518]
[1717801099575,0.75764871,3697.0,3696.6,4.09803466]
[1717801103767,0.03764871,3697.0,3696.6,4.09803466]
[1717801103926,0.94553977,3697.2,3696.6,4.09803466]
[1717801104259,0.03752475,3696.9,3696.8,2.70504]
[1717801104462,0.03752475,3696.9,3696.8,4.09789466]
[1717801104623,0.03754972,3696.9,3696.8,4.09789466]
[1717801104825,0.94553977,3697.2,3696.8,4.09789466]
[1717801105261,0.03757796,3697.1,3696.8,4.09789466]
[1717801105676,0.05757796,3697.1,3696.8,4.09789466]
[1717801106581,0.05757796,3697.1,3696.9,1.39285466]
[1717801107098,0.05757796,3697.1,3697.0,2.70489]
[1717801107256,0.05757796,3697.1,3697.0,4.09774466]
[1717801107462,0.05753063,3697.1,3697.0,4.09774466]
[1717801116486,0.05753063,3697.1,3696.6,2.70516]
[1717801116663,0.77753063,3697.1,3696.7,1.39285466]
[1717801118365,0.77753063,3697.1,3696.8,2.70504]
[1717801122705,0.05753063,3697.1,3696.8,2.70504]
[1717801135719,0.05753063,3697.1,3697.0,2.70489]
[1717801136014,0.05753063,3697.1,3697.0,4.09774466]
[1717801138710,0.0568601,3697.1,3697.0,4.09774466]
[1717801138878,0.02,3697.1,3697.0,4.09774466]
[1717801140391,0.056852,3697.1,3697.0,4.09774466]
[1717801149112,0.02,3697.1,3697.0,4.09774466]
[1717801155402,3.7529,3698.3,3697.9,2.70421]
[1717801155403,0.02,3698.2,3697.9,2.70421]
[1717801157409,0.03544201,3698.1,3697.9,2.70421]
[1717801159640,3.0329,3697.5,3697.4,2.70455]
[1717801159855,3.0329,3697.5,3697.0,4.09772466]
[1717801159856,3.7529,3697.5,3697.0,4.09772466]
[1717801160012,0.72,3697.3,3697.0,4.09772466]
[1717801160355,0.03531507,3697.2,3697.0,4.09772466]
[1717801160512,0.72,3697.3,3697.0,4.09772466]
[1717801160711,0.03527664,3697.1,3697.0,4.09772466]
[1717801160940,0.72,3697.3,3697.0,4.09772466]
[1717801161161,0.03525232,3697.1,3697.0,4.09772466]
[1717801161935,3.7529,3697.5,3697.0,4.09772466]
[1717801162151,0.03525232,3697.1,3697.0,4.09772466]
[1717801162293,3.7529,3697.5,3697.0,4.09772466]
[1717801162492,0.03529465,3697.4,3697.0,4.09772466]
[1717801164189,0.05529465,3697.4,3697.0,4.09772466]
[1717801167818,0.75,3697.2,3696.6,2.70516]
[1717801168032,0.75,3697.2,3696.7,1.39285466]
[1717801168232,0.0350812,3697.1,3696.7,1.39285466]
[1717801170395,0.7550812,3697.1,3696.7,1.39285466]
[1717801171406,0.0350812,3697.1,3696.7,1.39285466]